lending/lending_fUSD_20250920
["ID","MTS","AMOUNT","RATE_DAILY","PERIOD"]
[386585884,1758411082774,-1133.66,0.00023011,2]
[386585885,1758411082784,-1489.62,0.00023011,2]
[386585886,1758411082793,-1816.89,0.00023011,2]
[386585887,1758411082802,-400.0,0.00023011,2]
[386585888,1758411082813,-400.0,0.00023011,2]
[386585889,1758411082822,-699.21,0.00023011,2]
[386585890,1758411082832,-433.96,0.00023011,2]
[386585891,1758411082841,-497.85,0.00023011,2]
[386585892,1758411082850,-1498.85,0.00023011,2]
[386585893,1758411082860,-501.46,0.00023011,2]
[386585894,1758411082869,-1445.78,0.00023011,2]
[386585895,1758411082878,-1348.83,0.00023011,2]
[386585896,1758411082887,-400.0,0.00023011,2]
[386585897,1758411082897,-2422.53,0.00023011,2]
[386585898,1758411082906,-598.09,0.00023011,2]
[386585899,1758411082915,-409.78,0.00023011,2]
[386585900,1758411082925,-477.58,0.00023011,2]
[386585901,1758411082935,-1497.89,0.00023011,2]
[386585902,1758411082944,-1589.08,0.00023011,2]
[386585903,1758411082953,-860.36,0.00023011,2]
[386585904,1758411082963,-400.0,0.00023011,2]
[386585905,1758411082972,-400.0,0.00023011,2]
[386585906,1758411082982,-1089.9,0.00023011,2]
[386585907,1758411082992,-551.45,0.00023011,2]
[386585908,1758411083001,-1448.18,0.00023011,2]
[386585909,1758411083011,-1395.41,0.00023011,2]
[386585910,1758411083020,-1170.95,0.00023011,2]
[386585911,1758411083030,-2415.63,0.00023011,2]
[386585912,1758411083039,-1738.63,0.00023011,2]
[386585913,1758411083050,-1849.7,0.00023011,2]
[386585914,1758411083061,-417.17916856,0.00023011,2]
[386585915,1758411083070,-400.0,0.00023011,2]
[386585916,1758411083079,-1480.81,0.00023011,2]
[386585917,1758411083089,-1802.14,0.00023011,2]
[386585918,1758411083100,-400.0,0.00023011,2]
[386585919,1758411083110,-1713.45,0.00023011,2]
[386585920,1758411083119,-400.0,0.00023011,2]
[386585921,1758411083128,-400.0,0.00023011,2]
[386585922,1758411083137,-400.0,0.00023011,2]
[386585923,1758411083150,-1393.23,0.00023011,2]
[386585924,1758411083160,-400.0,0.00023011,2]
[386585925,1758411083170,-474.14,0.00023011,2]
[386585926,1758411083180,-400.0,0.00023011,2]
[386585927,1758411083192,-4674.98,0.00023011,2]
[386585928,1758411083203,-400.0,0.00023011,2]
[386585929,1758411083217,-1576.15,0.00023011,2]
[386585930,1758411083228,-400.0,0.00023011,2]
[386585931,1758411083239,-1261.46,0.00023011,2]
[386585932,1758411083251,-400.0,0.00023011,2]
[386585933,1758411083261,-400.0,0.00023011,2]
[386585934,1758411083270,-400.0,0.00023011,2]
[386585935,1758411083280,-403.88,0.00023011,2]
[386585936,1758411083289,-547.91823522,0.00023011,2]
[386585937,1758411083299,-400.0,0.00023011,2]
[386585938,1758411083308,-400.0,0.00023011,2]
[386585939,1758411083317,-400.0,0.00023011,2]
[386585940,1758411083327,-579.23,0.00023011,2]
[386585941,1758411083337,-2517.53,0.00023011,2]
[386585942,1758411083347,-400.0,0.00023011,2]
[386585943,1758411083356,-1151.73,0.00023011,2]
[386585944,1758411083365,-400.0,0.00023011,2]
[386585945,1758411083375,-400.0,0.00023011,2]
[386585946,1758411083384,-1217.05,0.00023011,2]
[386585947,1758411083394,-1634.57,0.00023011,2]
[386585948,1758411083403,-2339.4,0.00023011,2]
[386585949,1758411083412,-1609.71,0.00023011,2]
[386585950,1758411083422,-1594.78,0.00023011,2]
[386585951,1758411083431,-566.49,0.00023011,2]
[386585952,1758411083441,-1488.14,0.00023011,2]
[386585953,1758411083450,-400.0,0.00023011,2]
[386585954,1758411083460,-1427.2,0.00023011,2]
[386585955,1758411083469,-2965.38,0.00023011,2]
[386585956,1758411083479,-1122.29,0.00023011,2]
[386585957,1758411083488,-1612.07,0.00023011,2]
[386585958,1758411083497,-400.0,0.00023011,2]
[386585959,1758411083507,-1554.13,0.00023011,2]
[386585960,1758411083516,-1889.22,0.00023011,2]
[386585961,1758411083526,-422.21,0.00023011,2]
[386585962,1758411083536,-1626.96,0.00023011,2]
[386585963,1758411083545,-758.73,0.00023011,2]
[386585964,1758411083555,-2637.77,0.00023011,2]
[386585965,1758411083564,-2440.55,0.00023011,2]
[386585966,1758411083574,-1073.76,0.00023011,2]
[386585967,1758411083583,-400.0,0.00023011,2]
[386585968,1758411083593,-1463.93,0.00023011,2]
[386585969,1758411083603,-400.0,0.00023011,2]
[386585970,1758411083612,-739.58,0.00023011,2]
[386585971,1758411083621,-4758.73,0.00023011,2]
[386585972,1758411083633,-165.650782,0.00023011,2]
[386585973,1758411083643,-1895.35,0.00023011,2]
[386585974,1758411083654,-400.0,0.00023011,2]
[386585975,1758411083664,-460.55,0.00023011,2]
[386585976,1758411083673,-1309.63,0.00023011,2]
[386585977,1758411083684,-13160.01,0.00023011,2]
[386585978,1758411083695,-1213.84,0.00023011,2]
[386585979,1758411083705,-1507.36,0.00023011,2]
[386585980,1758411083715,-1931.19,0.00023011,2]
[386585981,1758411083726,-458.97,0.00023011,2]
[386585982,1758411083735,-2177.8,0.00023011,2]
[386585983,1758411083745,-1567.49,0.00023011,2]
[386585984,1758411083754,-400.0,0.00023011,2]
[386585985,1758411083763,-195.92778673,0.00023011,2]
[386585986,1758411083772,-400.0,0.00023011,2]
[386585987,1758411083783,-854.0,0.00023011,2]
[386585988,1758411083793,-310.98163398,0.00023011,2]
[386585989,1758411083804,-1619.08,0.00023011,2]
[386585990,1758411083814,-400.0,0.00023011,2]
[386585991,1758411083824,-503.48295956,0.00023012,2]
[386585992,1758411083835,-854.19,0.00023012,2]
[386585993,1758411083845,-400.0,0.00023012,2]
[386585994,1758411083856,-432.06,0.00023012,2]
[386585995,1758411083867,-400.0,0.00023012,2]
[386585996,1758411083877,-400.0,0.00023012,2]
[386585997,1758411083888,-400.0,0.00023012,2]
[386585998,1758411083899,-400.0,0.00023012,2]
[386585999,1758411083909,-400.0,0.00023012,2]
[386586000,1758411083919,-400.0,0.00023012,2]
[386586001,1758411083931,-400.0,0.00023012,2]
[386586002,1758411083941,-985.91,0.00023012,2]
[386586003,1758411083950,-656.77,0.00023012,2]
[386586004,1758411083960,-366.4104189,0.00023012,2]
[386586005,1758411083970,-721.71,0.00023012,2]
[386586006,1758411083979,-531.57,0.00023012,2]
[386586007,1758411083988,-549.75,0.00023012,2]
[386586008,1758411083998,-400.0,0.00023012,2]
[386586009,1758411084007,-400.0,0.00023012,2]
[386586010,1758411084017,-571.16,0.00023012,2]
[386586011,1758411084027,-400.0,0.00023012,2]
[386586012,1758411084036,-400.0,0.00023012,2]
[386586013,1758411084045,-528.21,0.00023012,2]
[386586014,1758411084055,-491.36,0.00023012,2]
[386586015,1758411084064,-400.0,0.00023012,2]
[386586016,1758411084074,-440.54,0.00023012,2]
[386586017,1758411084084,-405.17981533,0.00023012,2]
[386586018,1758411084096,-400.0,0.00023012,2]
[386586019,1758411084106,-400.0,0.00023012,2]
[386586020,1758411084117,-400.0,0.00023012,2]
[386586021,1758411084127,-483.57,0.00023012,2]
[386586022,1758411084138,-400.0,0.00023012,2]
[386586023,1758411084149,-400.0,0.00023012,2]
[386586024,1758411084159,-415.1588924,0.00023012,2]
[386586025,1758411084169,-930.44,0.00023012,2]
[386586026,1758411084181,-400.0,0.00023012,2]
[386586027,1758411084191,-400.0,0.00023012,2]
[386586028,1758411084201,-400.0,0.00023012,2]
[386586029,1758411084213,-400.0,0.00023012,2]
[386586030,1758411084223,-400.0,0.00023012,2]
[386586031,1758411084233,-545.4,0.00023012,2]
[386586032,1758411084245,-527.24,0.00023012,2]
[386586033,1758411084255,-400.0,0.00023012,2]
[386586034,1758411084266,-1149.03,0.00023012,2]
[386586035,1758411084276,-400.0,0.00023012,2]
[386586036,1758411084287,-400.0,0.00023012,2]
[386586037,1758411084297,-400.0,0.00023012,2]
[386586038,1758411084306,-416.29141731,0.00023012,2]
[386586039,1758411084317,-400.0,0.00023012,2]
[386586040,1758411084327,-400.0,0.00023012,2]
[386586041,1758411084338,-400.0,0.00023012,2]
[386586042,1758411084349,-524.41,0.00023012,2]
[386586043,1758411084360,-418.18,0.00023012,2]
[386586044,1758411084370,-469.540883,0.00023012,2]
[386586045,1758411084381,-400.0,0.00023012,2]
[386586046,1758411084391,-155.28749615,0.00023012,2]
[386586047,1758411084400,-400.0,0.00023012,2]
[386586048,1758411084410,-441.97,0.00023012,2]
[386586049,1758411084419,-400.0,0.00023012,2]
[386586050,1758411084429,-470.71,0.00023012,2]
[386586051,1758411084439,-400.0,0.00023012,2]
[386586052,1758411084448,-878.55,0.00023012,2]
[386586053,1758411084458,-681.86,0.00023012,2]
[386586054,1758411084467,-400.0,0.00023012,2]
[386586055,1758411084477,-480.84,0.00023012,2]
[386586056,1758411084487,-594.33,0.00023012,2]
[386586057,1758411084496,-1183.28,0.00023012,2]
[386586058,1758411084506,-1053.83,0.00023012,2]
[386586059,1758411084516,-400.0,0.00023012,2]
[386586060,1758411084525,-496.62,0.00023012,2]
[386586061,1758411084535,-455.21,0.00023012,2]
[386586062,1758411084545,-645.49,0.00023012,2]
[386586063,1758411084554,-564.11,0.00023012,2]
[386586064,1758411084563,-598.96,0.00023012,2]
[386586065,1758411084573,-400.0,0.00023012,2]
[386586066,1758411084583,-421.45409995,0.00023012,2]
[386586067,1758411084594,-417.74,0.00023012,2]
[386586068,1758411084604,-400.0,0.00023012,2]
[386586069,1758411084616,-537.04,0.00023012,2]
[386586070,1758411084626,-403.86,0.00023012,2]
[386586071,1758411084636,-400.0,0.00023012,2]
[386586072,1758411084645,-439.97,0.00023012,2]
[386586073,1758411084655,-400.0,0.00023012,2]
[386586074,1758411084664,-400.0,0.00023012,2]
[386586075,1758411084674,-400.0,0.00023012,2]
[386586076,1758411084684,-552.39,0.00023012,2]
[386586077,1758411084694,-400.0,0.00023012,2]
[386586078,1758411084703,-400.0,0.00023012,2]
[386586079,1758411084713,-400.0,0.00023012,2]
[386586080,1758411084723,-400.0,0.00023012,2]
[386586081,1758411084733,-400.0,0.00023012,2]
[386586082,1758411084743,-400.0,0.00023012,2]
[386586083,1758411084752,-400.0,0.00023012,2]
[386586084,1758411084762,-400.0,0.00023012,2]
[386586085,1758411084772,-500.06,0.00023012,2]
[386586086,1758411084781,-400.0,0.00023012,2]
[386586087,1758411084791,-400.0,0.00023012,2]
[386586088,1758411084801,-400.0,0.00023012,2]
[386586089,1758411084811,-400.0,0.00023012,2]
[386586090,1758411084822,-400.0,0.00023012,2]
[386586091,1758411084831,-400.0,0.00023012,2]
[386586092,1758411084841,-469.04,0.00023012,2]
[386586093,1758411084851,-422.32413571,0.00023012,2]
[386586094,1758411084861,-400.0,0.00023012,2]
[386586095,1758411084871,-530.59,0.00023012,2]
[386586096,1758411084881,-400.0,0.00023012,2]
[386586097,1758411084893,-498.67,0.00023012,2]
[386586098,1758411084903,-400.0,0.00023012,2]
[386586099,1758411084913,-980.36,0.00023012,2]
[386586100,1758411084923,-400.0,0.00023012,2]
[386586101,1758411084932,-400.0,0.00023012,2]
[386586102,1758411084942,-400.0,0.00023012,2]
[386586103,1758411084952,-400.0,0.00023012,2]
[386586104,1758411084962,-400.0,0.00023012,2]
[386586105,1758411084971,-400.0,0.00023012,2]
[386586106,1758411084981,-400.0,0.00023012,2]
[386586107,1758411084991,-419.91,0.00023012,2]
[386586108,1758411085000,-400.0,0.00023012,2]
[386586109,1758411085010,-400.0,0.00023012,2]
[386586110,1758411085019,-661.8,0.00023012,2]
[386586111,1758411085029,-774.81,0.00023012,2]
[386586112,1758411085038,-400.0,0.00023012,2]
[386586113,1758411085048,-400.0,0.00023012,2]
[386586114,1758411085057,-400.0,0.00023012,2]
[386586115,1758411085067,-400.0,0.00023012,2]
[386586116,1758411085079,-457.64,0.00023012,2]
[386586117,1758411085090,-400.0,0.00023012,2]
[386586118,1758411085100,-400.0,0.00023012,2]
[386586119,1758411085111,-400.0,0.00023012,2]
[386586120,1758411085125,-400.0,0.00023012,2]
[386586121,1758411085137,-507.99,0.00023012,2]
[386586122,1758411085148,-400.0,0.00023012,2]
[386586123,1758411085158,-400.0,0.00023012,2]
[386586124,1758411085167,-400.0,0.00023012,2]
[386586125,1758411085177,-400.0,0.00023012,2]
[386586126,1758411085404,-442.9,0.00023012,2]
[386586127,1758411085415,-400.0,0.00023012,2]
[386586128,1758411085427,-400.0,0.00023012,2]
[386586129,1758411085438,-819.83,0.00023012,2]
[386586130,1758411085448,-400.0,0.00023012,2]
[386586131,1758411085458,-400.0,0.00023012,2]
[386586132,1758411085468,-400.0,0.00023012,2]
[386586133,1758411085477,-550.43,0.00023012,2]
[386586134,1758411085488,-400.0,0.00023012,2]
[386586135,1758411085497,-400.0,0.00023012,2]
[386586136,1758411085507,-1180.28,0.00023012,2]
[386586137,1758411085516,-400.0,0.00023012,2]
[386586138,1758411085526,-400.0,0.00023012,2]
[386586139,1758411085537,-489.16,0.00023012,2]
[386586140,1758411085549,-400.0,0.00023012,2]
[386586141,1758411085559,-717.51,0.00023012,2]
[386586142,1758411085568,-662.56,0.00023012,2]
[386586143,1758411085578,-400.0,0.00023012,2]
[386586144,1758411085587,-400.0,0.00023012,2]
[386586145,1758411085598,-620.67,0.00023012,2]
[386586146,1758411085611,-400.0,0.00023012,2]
[386586147,1758411085621,-400.0,0.00023012,2]
[386586148,1758411085630,-400.0,0.00023012,2]
[386586149,1758411085642,-1448.23,0.00023012,2]
[386586150,1758411085653,-400.0,0.00023012,2]
[386586151,1758411085664,-400.0,0.00023012,2]
[386586152,1758411085674,-400.0,0.00023012,2]
[386586153,1758411085683,-400.0,0.00023012,2]
[386586154,1758411085693,-400.0,0.00023012,2]
[386586155,1758411085703,-494.35,0.00023012,2]
[386586156,1758411085712,-400.0,0.00023012,2]
[386586157,1758411085722,-400.0,0.00023012,2]
[386586158,1758411085731,-400.0,0.00023012,2]
[386586159,1758411085741,-506.29,0.00023012,2]
[386586160,1758411085751,-503.56,0.00023012,2]
[386586161,1758411085761,-400.0,0.00023012,2]
[386586162,1758411085771,-1018.85,0.00023012,2]
[386586163,1758411085781,-400.0,0.00023012,2]
[386586164,1758411085791,-400.0,0.00023012,2]
[386586165,1758411085801,-400.0,0.00023012,2]
[386586166,1758411085811,-1177.29,0.00023012,2]
[386586167,1758411085820,-400.0,0.00023012,2]
[386586168,1758411085830,-400.0,0.00023012,2]
[386586169,1758411085840,-703.39,0.00023012,2]
[386586170,1758411085851,-491.97,0.00023012,2]
[386586171,1758411085861,-400.0,0.00023012,2]
[386586172,1758411085871,-400.0,0.00023012,2]
[386586173,1758411085880,-560.72,0.00023012,2]
[386586174,1758411085890,-954.57,0.00023012,2]
[386586175,1758411085900,-400.0,0.00023012,2]
[386586176,1758411085909,-475.33,0.00023012,2]
[386586177,1758411085919,-400.0,0.00023012,2]
[386586178,1758411085929,-400.0,0.00023012,2]
[386586179,1758411085939,-400.0,0.00023012,2]
[386586180,1758411085948,-400.0,0.00023012,2]
[386586181,1758411085958,-488.85,0.00023012,2]
[386586182,1758411085968,-400.0,0.00023012,2]
[386586183,1758411085979,-545.4,0.00023012,2]
[386586184,1758411085988,-400.0,0.00023012,2]
[386586185,1758411085998,-400.0,0.00023012,2]
[386586186,1758411086008,-400.0,0.00023012,2]
[386586187,1758411086019,-483.7,0.00023012,2]
[386586188,1758411086029,-424.28,0.00023012,2]
[386586189,1758411086039,-400.0,0.00023012,2]
[386586190,1758411086048,-400.0,0.00023012,2]
[386586191,1758411086058,-400.0,0.00023012,2]
[386586192,1758411086070,-1186.43,0.00023012,2]
[386586193,1758411086080,-400.0,0.00023012,2]
[386586194,1758411086091,-428.03,0.00023012,2]
[386586195,1758411086102,-400.0,0.00023012,2]
[386586196,1758411086112,-399.53332227,0.00023012,2]
[386586197,1758411086125,-400.0,0.00023012,2]
[386586198,1758411086135,-400.0,0.00023012,2]
[386586199,1758411086144,-400.0,0.00023012,2]
[386586200,1758411086154,-400.0,0.00023012,2]
[386586201,1758411086163,-400.0,0.00023012,2]
[386586202,1758411086174,-549.99,0.00023012,2]
[386586203,1758411086183,-606.93,0.00023012,2]
[386586204,1758411086193,-161.12378746,0.00023012,2]
[386586205,1758411086203,-400.0,0.00023012,2]
[386586206,1758411086213,-400.0,0.00023012,2]
[386586207,1758411086222,-583.37,0.00023012,2]
[386586208,1758411086232,-400.0,0.00023012,2]
[386586209,1758411086241,-578.4,0.00023012,2]
[386586210,1758411086251,-400.0,0.00023012,2]
[386586211,1758411086260,-400.0,0.00023012,2]
[386586212,1758411086271,-400.0,0.00023012,2]
[386586213,1758411086280,-400.0,0.00023012,2]
[386586214,1758411086289,-1000.0,0.00023012,2]
[386586215,1758411086299,-400.0,0.00023012,2]
[386586216,1758411086308,-400.0,0.00023012,2]
[386586217,1758411086318,-568.23,0.00023012,2]
[386586218,1758411086328,-1276.42,0.00023012,2]
[386586219,1758411086337,-400.0,0.00023012,2]
[386586220,1758411086347,-400.0,0.00023012,2]
[386586221,1758411086356,-400.0,0.00023012,2]
[386586222,1758411086366,-400.0,0.00023012,2]
[386586223,1758411086376,-400.0,0.00023012,2]
[386586224,1758411086387,-400.0,0.00023012,2]
[386586225,1758411086397,-400.0,0.00023012,2]
[386586226,1758411086409,-400.0,0.00023012,2]
[386586227,1758411086419,-400.0,0.00023012,2]
[386586228,1758411086430,-400.0,0.00023012,2]
[386586229,1758411086440,-400.0,0.00023012,2]
[386586230,1758411086450,-400.0,0.00023012,2]
[386586231,1758411086461,-411.74657634,0.00023012,2]
[386586232,1758411086472,-400.0,0.00023012,2]
[386586233,1758411086482,-400.0,0.00023012,2]
[386586234,1758411086491,-400.0,0.00023012,2]
[386586235,1758411086501,-1011.08,0.00023012,2]
[386586236,1758411086511,-613.51,0.00023012,2]
[386586237,1758411086520,-400.0,0.00023012,2]
[386586238,1758411086532,-400.0,0.00023012,2]
[386586239,1758411086542,-472.79,0.00023012,2]
[386586240,1758411086552,-400.0,0.00023012,2]
[386586241,1758411086562,-400.0,0.00023012,2]
[386586242,1758411086572,-400.0,0.00023012,2]
[386586243,1758411086581,-400.0,0.00023012,2]
[386586244,1758411086591,-400.0,0.00023012,2]
[386586245,1758411086601,-400.0,0.00023012,2]
[386586246,1758411086611,-400.0,0.00023012,2]
[386586247,1758411086622,-400.0,0.00023012,2]
[386586248,1758411086631,-431.21,0.00023012,2]
[386586249,1758411086641,-400.0,0.00023012,2]
[386586250,1758411086651,-520.58,0.00023012,2]
[386586251,1758411086661,-400.0,0.00023012,2]
[386586252,1758411086671,-400.0,0.00023012,2]
[386586253,1758411086680,-400.0,0.00023012,2]
[386586254,1758411086690,-400.0,0.00023012,2]
[386586255,1758411086699,-400.0,0.00023012,2]
[386586256,1758411086709,-400.0,0.00023012,2]
[386586257,1758411086719,-400.0,0.00023012,2]
[386586258,1758411086729,-1232.86,0.00023012,2]
[386586259,1758411086739,-400.0,0.00023012,2]
[386586260,1758411086748,-400.0,0.00023012,2]
[386586261,1758411086758,-805.27,0.00023012,2]
[386586262,1758411086768,-400.0,0.00023012,2]
[386586263,1758411086779,-400.0,0.00023012,2]
[386586264,1758411086788,-400.0,0.00023012,2]
[386586265,1758411086798,-400.0,0.00023012,2]
[386586266,1758411086808,-785.66,0.00023012,2]
[386586267,1758411086818,-525.84,0.00023012,2]
[386586268,1758411086828,-400.0,0.00023012,2]
[386586269,1758411086838,-586.0,0.00023012,2]
[386586270,1758411086848,-400.0,0.00023012,2]
[386586271,1758411086861,-400.0,0.00023012,2]
[386586272,1758411086871,-400.0,0.00023012,2]
[386586273,1758411086881,-400.0,0.00023012,2]
[386586274,1758411086892,-400.0,0.00023012,2]
[386586275,1758411086902,-400.0,0.00023012,2]
[386586276,1758411086912,-400.0,0.00023012,2]
[386586277,1758411086922,-400.0,0.00023012,2]
[386586278,1758411086932,-400.0,0.00023012,2]
[386586279,1758411086942,-417.45,0.00023012,2]
[386586280,1758411086953,-400.0,0.00023012,2]
[386586281,1758411086963,-400.0,0.00023012,2]
[386586282,1758411086972,-400.0,0.00023012,2]
[386586283,1758411086982,-400.0,0.00023012,2]
[386586284,1758411086992,-400.0,0.00023012,2]
[386586285,1758411087002,-400.0,0.00023012,2]
[386586286,1758411087012,-400.0,0.00023012,2]
[386586287,1758411087022,-400.0,0.00023012,2]
[386586288,1758411087032,-400.0,0.00023012,2]
[386586289,1758411087042,-400.0,0.00023012,2]
[386586290,1758411087053,-456.7,0.00023012,2]
[386586291,1758411087065,-400.0,0.00023012,2]
[386586292,1758411087075,-400.0,0.00023012,2]
[386586293,1758411087085,-400.0,0.00023012,2]
[386586294,1758411087097,-400.0,0.00023012,2]
[386586295,1758411087108,-413.47,0.00023012,2]
[386586296,1758411087119,-1119.76,0.00023012,2]
[386586297,1758411087136,-400.0,0.00023012,2]
[386586298,1758411087151,-400.0,0.00023012,2]
[386586299,1758411087161,-1188.82,0.00023012,2]
[386586300,1758411087171,-400.0,0.00023012,2]
[386586301,1758411087181,-400.0,0.00023012,2]
[386586302,1758411087191,-468.42,0.00023012,2]
[386586303,1758411087202,-1123.48,0.00023012,2]
[386586304,1758411087213,-400.0,0.00023012,2]
[386586305,1758411087222,-400.0,0.00023012,2]
[386586306,1758411087232,-400.0,0.00023012,2]
[386586307,1758411087241,-536.52,0.00023012,2]
[386586308,1758411087251,-416.99,0.00023012,2]
[386586309,1758411087261,-400.0,0.00023012,2]
[386586310,1758411087270,-400.0,0.00023012,2]
[386586311,1758411087280,-1384.3,0.00023012,2]
[386586312,1758411087289,-400.0,0.00023012,2]
[386586313,1758411087299,-400.0,0.00023012,2]
[386586314,1758411087308,-400.0,0.00023012,2]
[386586315,1758411087318,-529.84917946,0.00023012,2]
[386586316,1758411087327,-400.0,0.00023012,2]
[386586317,1758411087337,-10663.12,0.00023012,2]
[386586318,1758411087346,-400.0,0.00023012,2]
[386586319,1758411087357,-400.0,0.00023012,2]
[386586320,1758411087366,-400.0,0.00023012,2]
[386586321,1758411087375,-400.0,0.00023012,2]
[386586322,1758411087385,-505.14,0.00023012,2]
[386586323,1758411087395,-941.59,0.00023012,2]
[386586324,1758411087404,-465.27,0.00023012,2]
[386586325,1758411087414,-488.79,0.00023012,2]
[386586326,1758411087423,-400.0,0.00023012,2]
[386586327,1758411087433,-400.0,0.00023012,2]
[386586328,1758411087443,-400.0,0.00023012,2]
[386586329,1758411087452,-400.0,0.00023012,2]
[386586330,1758411087463,-400.0,0.00023012,2]
[386586331,1758411087472,-400.0,0.00023012,2]
[386586332,1758411087481,-400.0,0.00023012,2]
[386586333,1758411087495,-400.0,0.00023012,2]
[386586334,1758411087505,-16865.07,0.00023012,2]
[386586335,1758411087516,-400.0,0.00023012,2]
[386586336,1758411087526,-848.28,0.00023012,2]
[386586337,1758411087536,-400.0,0.00023012,2]
[386586338,1758411087546,-979.23,0.00023012,2]
[386586339,1758411087556,-969.74,0.00023012,2]
[386586340,1758411087566,-400.0,0.00023012,2]
[386586341,1758411087576,-9878.67,0.00023012,2]
[386586342,1758411087586,-421.50182788,0.00023012,2]
[386586343,1758411087596,-400.0,0.00023012,2]
[386586344,1758411087606,-7127.75,0.00023012,2]
[386586345,1758411087616,-1625.56,0.00023012,2]
[386586346,1758411087626,-5798.24,0.00023012,2]
[386586347,1758411087636,-400.0,0.00023012,2]
[386586348,1758411087645,-518.98,0.00023012,2]
[386586349,1758411087655,-400.0,0.00023012,2]
[386586350,1758411087665,-400.0,0.00023012,2]
[386586351,1758411087675,-400.0,0.00023012,2]
[386586352,1758411087685,-400.0,0.00023012,2]
[386586353,1758411087695,-3063.29,0.00023012,2]
[386586354,1758411087705,-3515.75,0.00023012,2]
[386586355,1758411087715,-400.0,0.00023012,2]
[386586356,1758411087724,-400.0,0.00023012,2]
[386586357,1758411087734,-414.27,0.00023012,2]
[386586358,1758411087744,-400.0,0.00023012,2]
[386586359,1758411087754,-400.0,0.00023012,2]
[386586360,1758411087764,-2824.3,0.00023012,2]
[386586361,1758411087774,-1003.21,0.00023012,2]
[386586362,1758411087784,-400.0,0.00023012,2]
[386586363,1758411087794,-400.0,0.00023012,2]
[386586364,1758411087803,-400.0,0.00023012,2]
[386586365,1758411087813,-670.93,0.00023012,2]
[386586366,1758411087822,-1643.08,0.00023012,2]
[386586367,1758411087832,-403.69273012,0.00023012,2]
[386586368,1758411087842,-546.38,0.00023012,2]
[386586369,1758411087851,-400.0,0.00023012,2]
[386586370,1758411087861,-990.27,0.00023012,2]
[386586371,1758411087870,-400.0,0.00023012,2]
[386586372,1758411087880,-400.0,0.00023012,2]
[386586373,1758411088025,-555.99,0.00023012,2]
[386586374,1758411088035,-2200.43,0.00023012,2]
[386586375,1758411088045,-400.0,0.00023012,2]
[386586376,1758411088055,-436.66,0.00023012,2]
[386586377,1758411088064,-400.0,0.00023012,2]
[386586378,1758411088074,-1703.48,0.00023012,2]
[386586379,1758411088083,-4525.56,0.00023012,2]
[386586380,1758411088093,-443.92,0.00023012,2]
[386586381,1758411088102,-4961.42,0.00023012,2]
[386586382,1758411088112,-400.0,0.00023012,2]
[386586383,1758411088123,-400.0,0.00023012,2]